Cogmind - Beta 14 X2 @@@ ROGUE MODE // 2024.07.30 @ 18:30:26 Player: Selene Result: Destroyed by S-10 Pest with Light Assault Rifle Performance ------------- Evolutions (0) 0 Regions Visited (2) 400 Robots Destroyed (25) 125 Value Destroyed (591) 591 Prototype IDs (4) 80 Alien Tech Used (0) 0 Bonus (0) 0 TOTAL SCORE: 1196 Bonus ------- None Cogmind --------- Core Integrity 0/250 Matter 225/300 Energy 156/160 System Corruption 0% Temperature Cool (0) Movement Treading (320) Ox2 Location -10/Subcaves Parts ------- > --- POWER (1) -------- Light Nuclear Core > --- PROPULSION (2) --- Light Treads > --- UTILITY (2) ------ High-capacity Storage Unit > --- WEAPON (2) ------- Subdweller Laser Hammer > --- INVENTORY (20) --- Riot Gun Subdweller Laser Subdweller Beam Cannon Peak State ------------ > --- POWER ------------ Light Nuclear Core > --- PROPULSION ------- Wheel > --- UTILITY ---------- High-capacity Storage Unit Light Armor Plating > --- WEAPON ----------- Subdweller Laser Hammer > --- INVENTORY -------- Light Treads Wheel SUBCON Basin [Rating: 27] Favorites ----------- Power Ion Engine Engine Ion Engine Power Core Light Nuclear Core Propulsion Light Treads Treads Light Treads Wheel Wheel Utility Seismic Detector Device Seismic Detector Storage Large Storage Unit Protection Light Armor Plating Weapon Assault Rifle Energy Gun Subdweller Laser Ballistic Gun Assault Rifle Launcher Grenade Launcher Impact Weapon Hammer Build | -11 -10 -10 ------- Run | Yrd Mat Sub Slots Evolved . | . . . Power . | . . . Propulsion . | . . . Utility . | . . . Weapon . | . . . Parts Attached 45 | 7 21 17 Power 3 | 1 1 1 Engine 2 | 1 1 . Core 1 | . . 1 Reactor . | . . . Propulsion 8 | 2 3 3 Treads 4 | 1 1 2 Leg . | . . . Wheel 4 | 1 2 1 Hover . | . . . Flight . | . . . Utility 16 | 2 9 5 Device 6 | 1 3 2 Storage 4 | 1 2 1 Processor . | . . . Hackware . | . . . Protection 6 | . 4 2 Artifact . | . . . Weapon 18 | 2 8 8 Energy Gun 3 | . . 3 Energy Cannon . | . . . Ballistic Gun 9 | 2 6 1 Ballistic Cannon . | . . . Launcher 5 | . 2 3 Special Weapon . | . . . Impact Weapon 1 | . . 1 Slashing Weapon . | . . . Piercing Weapon . | . . . Special Melee Weapon . | . . . Unidentified Prototypes . | . . . Parts Lost 8 | . 1 7 Power 1 | . . 1 Propulsion 3 | . . 3 Utility 2 | . . 2 Weapon 2 | . 1 1 Highest Loss Streak 5 | . 1 5 To Critical Strikes 1 | . . 1 Average Slot Usage (%) 98 | . 100 95 Engine 12 | . 14 10 Core 1 | . . 2 Treads 13 | . 14 10 Wheel 14 | . 13 16 Device 8 | . 7 10 Storage 14 | . 14 14 Protection 4 | . 6 . Energy Gun 3 | . . 8 Ballistic Gun 17 | . 27 3 Launcher 1 | . . 3 Impact Weapon 5 | . . 12 Naked Turns . | . . . Heaviest Build 54 | 12 32 54 Greatest Support 40 | 16 40 20 Greatest Overweight (x) 5 | . 3 5 Average Overweight (x) 1 | . 1 3 Largest Inventory Capacity 20 | 8 15 20 Average Capacity 15 | 7 14 18 Most Carried 20 | 7 15 20 Average Carried 14 | 4 13 17 Final Capacity 20 | 8 15 20 Final Carried 15 | 7 15 3 Class Distribution -------------------- 100% | Mutant Dominant Class ---------------- Mutant | -10/Materials Mutant | -10/Subcaves Resources | -11 -10 -10 ----------- Run | Yrd Mat Sub Matter Collected 993 | 286 396 311 Remotely . | . . . Salvage Created 647 | 21 478 148 Parts 41 | 3 32 6 Haulers Intercepted 1 | . 1 . Recyclers Shooed 1 | 1 . . Parts Field Recycled . | . . . Retrieved Matter . | . . . Parts Self-Destructed 6 | . . 6 Prevented . | . . . Kills | -11 -10 -10 ------- Run | Yrd Mat Sub Combat Hostiles Destroyed 20 | . 15 5 Melee 1 | . . 1 Guns 11 | . 9 2 AOE 8 | . 6 2 Classes Destroyed 7 | 1 5 1 Worker 1 | . 1 . Tunneler 1 | 1 . . Hauler 1 | . 1 . Watcher 2 | . 2 . Swarmer 7 | . 6 1 Grunt 9 | . 9 . Subdweller 4 | . . 4 Best Kill Streak 4 | 1 4 2 Combat Bots Only 3 | . 3 2 Max Kills in Single Turn 2 | 1 2 1 Gunslinging . | . . . Exploded 2 | . 2 1 Melee 1 | . . 1 Uniques/NPCs Destroyed . | . . . Combat | -11 -10 -10 -------- Run | Yrd Mat Sub Hostile Shots Fired 144 | . 66 78 Missed 44 | . 17 27 Damage Taken 1344 | . 560 784 Core 253 | . 78 175 Absorbed by Shields . | . . . Redirected to Shielding 4 | . 4 . Core Remaining (%) 100 | 100 . . Volleys Fired 93 | 4 56 33 Largest 2 | 2 2 2 Hottest 60 | 40 40 60 Shots Fired 150 | 8 107 35 Gun 134 | 8 102 24 Cannon . | . . . Launcher 16 | . 5 11 Special . | . . . Kinetic 110 | 8 102 . Thermal 24 | . . 24 Explosive 16 | . 5 11 Electromagnetic . | . . . Robot Hit Streak 12 | 6 12 10 Robot Miss Streak 3 | 1 3 3 Penetration Max . | . . . Secondary Targets . | . . . Shots Hit Robots 96 | 6 72 18 Core Hits 42 | 2 32 8 Critical Kills . | . . . Critical Parts Destroyed 2 | . 2 . Critical Strikes 2 | . 2 . Destroy 2 | . 2 . Melee Attacks 10 | . . 10 Impact 10 | . . 10 Slashing . | . . . Piercing . | . . . Sneak Attacks . | . . . Combat Hostiles . | . . . Follow-up Attacks . | . . . Damage Inflicted 2037 | 66 1254 717 Guns 1239 | 66 872 301 Cannons . | . . . Explosions 726 | . 382 344 Melee 72 | . . 72 Ramming . | . . . Kinetic 938 | 66 872 . Thermal 301 | . . 301 Explosive 726 | . 382 344 Electromagnetic . | . . . Impact 72 | . . 72 Slashing . | . . . Piercing . | . . . Highest Corruption . | . . . Average Corruption . | . . . Corruption Purged . | . . . Corruption Blocked . | . . . Overload Shots . | . . . Overflow Damage 35 | . 11 24 Projectiles . | . . . Explosions 35 | . 11 24 Melee . | . . . Knockbacks 1 | . . 1 Impact 1 | . . 1 Kinetic . | . . . Secondary . | . . . Self-Inflicted Damage 102 | . 10 92 Shots 5 | . 1 4 Rammed . | . . . Targets Rammed . | . . . Kicked . | . . . Crushed . | . . . Highest Temperature 229 | . 29 229 Average Temperature 19 | . 4 86 Received Heat Transfer 596 | . 267 329 Siege Activations . | . . . Robots Corrupted . | . . . Combat Hostiles . | . . . Parts Fried . | . . . Impact Corruptions . | . . . Robots Melted . | . . . Combat Hostiles . | . . . Parts Melted . | . . . Heat Transferred 350 | . . 350 Parts Sabotaged . | . . . Parts Stolen . | . . . Parts Stripped . | . . . Power Chain Reactions . | . . . Alert | -11 -10 -10 ------- Run | Yrd Mat Sub Peak Influence 305 | 5 305 . Initial 3 | . 3 . Average 135 | 1 144 . Maximum Alert Level 1 | . 1 . Low Security (%) 84 | 100 83 . Level 1 15 | . 16 . Level 2 . | . . . Level 3 . | . . . Level 4 . | . . . Level 5 . | . . . High Security . | . . . Max Security . | . . . Squads Dispatched 4 | . 4 . Investigation 2 | . 2 . Extermination . | . . . Reinforcement 2 | . 2 . Assault . | . . . Garrison . | . . . Intercept . | . . . Searches Triggered . | . . . Construction Impeded . | . . . Haulers Reinforced . | . . . Active Scanning Responses . | . . . Cargo Convoy Interrupts . | . . . Stealth | -11 -10 -10 --------- Run | Yrd Mat Sub Distress Signals 4 | . 4 . Communications Jammed . | . . . Distress Signals . | . . . Times Spotted 36 | . 27 9 Peak Tracking Total 8 | . 8 6 Tactical Retreats 3 | . 2 1 Traps | -11 -10 -10 ------- Run | Yrd Mat Sub Traps Triggered 2 | . 2 . Indirectly . | . . . Trap Hack Attempts . | . . . Triggered . | . . . Disarmed . | . . . Reprogrammed . | . . . Reused . | . . . Traps Extracted . | . . . Installed 1 | . . 1 Triggered 1 | . . 1 Machines | -11 -10 -10 ---------- Run | Yrd Mat Sub Machines Disabled 1 | . 1 . Max in Single Turn 1 | . 1 . Machines Repaired . | . . . Machines Dismantled . | . . . Machines Sabotaged . | . . . Overloaded Fab Kills . | . . . Hacking | -11 -10 -10 --------- Run | Yrd Mat Sub Machines Accessed 7 | . 4 3 Terminals 2 | . 2 . Fabricators . | . . . Repair Stations . | . . . Recycling Units 2 | . 2 . Scanalyzers . | . . . Garrison Access . | . . . Total Hacks 24 | . 18 6 Successful 16 | . 10 6 Failed 8 | . 8 . Catastrophic . | . . . Database Lockouts . | . . . Manual 8 | . 8 . Terminals 11 | . 11 . Fabricators . | . . . Repair Stations . | . . . Recycling Units 7 | . 7 . Scanalyzers . | . . . Garrison Access . | . . . Terminal Hacks 12 | . 6 6 Record 4 | . . 4 Robot Analysis 1 | . 1 . Prototype ID Bank 2 | . 2 . Open Door 1 | . . 1 Locate Traps 2 | . 2 . Hauler Manifests 1 | . 1 . Release Object 1 | . . 1 Fabricator Hacks . | . . . Repair Station Hacks . | . . . Recycling Unit Hacks 2 | . 2 . Retrieve Components 2 | . 2 . Scanalyzer . | . . . Garrison Access Hacks . | . . . Unauthorized Hacks 2 | . 2 . Terminals 1 | . 1 . Botnet 1 | . 1 . Fabricators . | . . . Repair Stations . | . . . Recycling Units 1 | . 1 . Reject 1 | . 1 . Scanalyzers . | . . . Garrison Access . | . . . Data Cores Recovered . | . . . Used . | . . . Hacking Detections 4 | . 4 . Full Trace Events . | . . . Feedback Events . | . . . Feedback Blocked . | . . . Robot Schematics Acquired . | . . . Robots Built . | . . . Authchips . | . . . Time . | . . . Total Robot Build Rating . | . . . Part Schematics Acquired . | . . . Parts Built . | . . . Authchips . | . . . Time . | . . . Total Part Build Rating . | . . . Parts Repaired . | . . . Time . | . . . Parts Recycled . | . . . Recycled Matter . | . . . Retrieved Matter . | . . . Retrieved Components 12 | . 12 . Parts Scanalyzed . | . . . Part Schematics Acquired . | . . . Parts Damaged . | . . . Bothacking | -11 -10 -10 ------------ Run | Yrd Mat Sub Used RIF Installer . | . . . Robots Hacked . | . . . Non-combat . | . . . Combat . | . . . Robot Hacks Applied . | . . . Relay Couplers Released . | . . . Fabnet Peak Effective % . | . . . Robots Rewired . | . . . Allies Hacked . | . . . Hacks Repelled . | . . . Allies | -11 -10 -10 -------- Run | Yrd Mat Sub Total Allies . | . . . Largest Group . | . . . Highest-Rated Group . | . . . Highest-Rated Ally . | . . . Total Orders . | . . . Ally Attacks . | . . . Total Damage . | . . . Kills . | . . . Allies Corrupted . | . . . Allies Melted . | . . . Intel | -11 -10 -10 ------- Run | Yrd Mat Sub Robot Analysis Total 1 | . 1 . Derelict Logs Recovered . | . . . Drone Launches . | . . . Drone Recoveries . | . . . Exploration | -11 -10 -10 ------------- Run | Yrd Mat Sub Turns Passed 2248 | 79 1237 932 Spaces Moved 1493 | 48 843 602 Core 2 | 2 . . Treads 17 | . 17 . Legs . | . . . Wheels 1474 | 46 826 602 Hover . | . . . Flight . | . . . Fastest Speed 50 | 50 100 110 Average Speed 121 | 97 114 132 Slowest Speed 160 | 100 160 155 Overloaded Moves . | . . . Propulsion Burnouts . | . . . Robots Hopped . | . . . Cave-ins Triggered . | . . . Exploration Rate (%) 42 | 4 98 25 Regions Visited 2 Branch Regions 1 Pre-discovered Areas . | . . . Known Exits Taken . | . . . Unknown Exits Taken 2 | 1 1 . Scrap Searched 3 | . . 3 Spaces Dug 7 | . . 7 Terrain Destroyed 70 | . 27 43 Melee . | . . . Projectile . | . . . AOE 70 | . 27 43 Terrain Rammed . | . . . Walls Destroyed . | . . . Machines Disabled . | . . . Actions | -11 -10 -10 --------- Run | Yrd Mat Sub Total 1766 | 69 1011 686 Wait 66 | 4 61 1 Move 1491 | 47 842 602 Hop . | . . . Pick Up 31 | 7 18 6 Fast Attach 8 | 7 . 1 Attach 6 | . 1 5 Detach 1 | . . 1 Swap 31 | . 20 11 Drop 27 | . 13 14 Fire 93 | 4 56 33 Melee 10 | . . 10 Ram . | . . . Kick . | . . . Crush . | . . . Escape Stasis . | . . . Rewire . | . . . Trap 1 | . . 1 Miscellaneous 1 | . . 1 Route ------- -11/Scrapyard -10/Materials (discovered 5 exits: [*Mat x3] / [*Min] / *Sub) -10/Subcaves (discovered 1 exit: [*Mat]) History --------- Turn | Location | Event 8 | -11/Scrapyard | Discovered new exit (range 15) 80 | -11/Scrapyard | Entered Materials 139 | -10/Materials | Discovered new exit (range 15) 302 | -10/Materials | Build established: Mutant 704 | -10/Materials | Discovered new exit (range 7) 1048 | -10/Materials | Discovered new exit (range 16) 1183 | -10/Materials | Discovered new exit (range 15) 1303 | -10/Materials | Discovered new exit (range 9) 1317 | -10/Materials | Entered Subcaves 1335 | -10/Subcaves | Ambushed by Subdwellers from Twisted Machinery 1364 | -10/Subcaves | Shifting Twisted Machinery released Sub. Laser 1385 | -10/Subcaves | Shifting Twisted Machinery released Sub. Beam Cannon 1418 | -10/Subcaves | Shifting Twisted Machinery released Piercing Trap 1439 | -10/Subcaves | Shifting Twisted Machinery released Sub. Beam Cannon 1563 | -10/Subcaves | Found SUBCON Basin 1708 | -10/Subcaves | Visited Clippyterm 1713 | -10/Subcaves | Learned Research security intel 1805 | -10/Subcaves | Discovered new exit (range 8) 1840 | -10/Subcaves | Disturbed a concealed Subdweller 2037 | -10/Subcaves | Core integrity fell below 50% 2087 | -10/Subcaves | Lost 5 parts (1p1n2u1w) 2226 | -10/Subcaves | Released subatomizers from SUBCON Basin 2237 | -10/Subcaves | Core integrity fell below 20% 2249 | -10/Subcaves | Destroyed by S-10 Pest with Light Assault Rifle Last Messages --------------- 02042_ Lgt. Treads destroyed. 02049_ The unstable cave ceiling collapses. 02052_ Sub. Laser shoots sparks and powers down. 02056_ Lgt. Armor Plating destroyed. 02059_ ZF-GU7(R) destroyed. 02061_ Acquired 10 matter. 02065_ Acquired Sub. Beam Cannon. 02076_ Acquired Riot Gun. 02106_ Acquired Sub. Laser. 02188_ Subatomizers dissect the Disposable Heat Sink. 02225_ Dropped SUBCON Basin. 02226_ Released subatomizers from SUBCON Basin. 02231_ S-10 Pest destroyed. 02237_ Flight Unit fries itself beyond repair. 02238_ Wheel destroyed. 02240_ Flight Unit fries itself beyond repair. 02241_ Wheel destroyed. 02243_ S-10 Pest destroyed. 02248_ Destroyed Flight Unit. Map ----- +----------------------------------------------------+ | ????????#######???????????# ###??? | | ??????????????????????????###### ##????? | | ???????????????????????????????####### * ##????? | | ???????????????????????????????????# # ""##???? | | ???????????????????????????????????## # ""##??? | | ???????????????????????????????????####&&"" ##?? | | ????????????????????""???????????????#*""%### ### | | ??????????????????" " ?????????????#"""""# # | | ??????????????????? ?????????????##""""## " | | ??????????????????? ??????????????##""### | | ???????????????????? ???????????????#### # & | | ???????????????????? ??????????????????## ! # | | ????????????????????# ????????????????## & # | | ????????????????????# ???????????????## # | | ????????????????????# ???????????##### | | ????????????????????# %!???????????# # """ | | ????????????????????# [ ???###?##### """ | | ????????????????????# #### ### ## ""# | | ???????????????# ???# ## # # # ## ### | | ??????????????## ## s ### ###########?? | | ??????????????# # # #??????????? | | ????????? %s ##??????????? | | ????????? ###%* #### # #???????????# | | ?????????? ## ???#= ##??######??????????## | | ?????????????# ????# #??????????#######??# | | ?????????????## ??????#@ #?????????## ## #?## | | ??????????????# ???????## #???????## ### | | ??????????????# ?????????# #??????## ## | | ?????????????????????????# #?????# | | ????????????????????????? ????# | | ?????????????????????????### #??## # | | ????????????????????????????#####??# ## ## | | ???????????????????????????????????######## #? | | ??????????????????????????????????????????### # | | ????????????????????????????????????????????# # | | ????????????????????????????????????????????## ## | | ?????????????????????????????????????????????####? | | ?????????????????????????????????????????????????? | | ?????????????????????????????????????????????????? | | ?????????????????????????????????????????????????? | | ?????????????????????????????????????????????????? | | ?????????????????????????????????????????????????? | | ?????????????????????????????????????????????????? | | ?????????????????????????????????????????????????? | | ?????????????????????????????????????????????????? | | ?????????????????????????????????????????????????? | | ?????????????????????????????????????????????????? | | ?????????????????????????????????????????????????? | | ?????????????????????????????????????????????????? | | ?????????????????????????????????????????????????? | +----------------------------------------------------+ Best States ------------- Heat Dissipation 25 Energy Generation 14 Energy Capacity 250 Matter Stores 300 Matter Capacity 300 Sight Range 16 Terrain Scan Density 10 Armor Coverage 150 Core Shielding 20 Evasion (%) 40 Recoil Reduction 2 Item Schematics ----------------- None Robot Schematics ------------------ None Fabricated ------------ Nothing Alien Tech Used ----------------- None Achievements -------------- None Challenges ------------ None Game ------ Seed MissileWeldingInverter Manual? 0 Play Time 00:28:39 Cumulative 113.5 hours Start 2024.07.30 @ 18:08:22 End 2024.07.30 @ 18:30:26 Sessions 1 Manual Loads 0 Difficulty Rogue Special Mode None Game No. 72 Rogue 69 Adventurer 3 Explorer 0 Win Type - Total 2 Types 2/0/0/0/0/0/0/0/0 Lore% 49 Gallery% 58 Achievement% 50 Wizard Run 0 Options --------- Layout 2 ASCII 0 Keyboard 1 Movement Vi Keybinds 1 Fullscreen 2 Font 24/Smallcaps Map View 50x44 Zoom Use 0% Tactical HUD 1 Map Filters NONE Filters NONE Steam 1 RUN: f099060d-c7ed-484e-9723-465fd659efba